fUST/lending_fUST_20250611
["ID","MTS","AMOUNT","RATE_DAILY","PERIOD"]
[365380147,1749634241126,-420.0,0.00022464,2]
[365380148,1749634241135,-1902.47,0.00022464,4]
[365380149,1749634241144,-1071.23,0.00022464,4]
[365380150,1749634241153,-151.0,0.00022465,7]
[365380151,1749634241167,-201.429579,0.00022465,7]
[365380152,1749634241176,-201.429579,0.00022465,7]
[365380153,1749634241185,-434.3016927,0.00022479,2]
[365380154,1749634241195,-151.0,0.0002251,7]
[365380155,1749634241204,-151.0,0.0002251,7]
[365380156,1749634241214,-151.0,0.0002251,7]
[365380157,1749634241224,-290.094625,0.0002251,7]
[365380158,1749634241233,-362.62462011,0.00022521,7]
[365380159,1749634241244,-5000.0,0.00022522,2]
[365380160,1749634241253,-151.0,0.000226,10]
[365380161,1749634241262,-362.62462011,0.00022624,7]
[365380162,1749634241271,-779.84933528,0.00022638,2]
[365380163,1749634241279,-151.0,0.000227,8]
[365380164,1749634241288,-779.84933525,0.00022704,2]
[365380165,1749634241297,-362.62462011,0.00022728,7]
[365380166,1749634241306,-641.33,0.00022737,4]
[365380167,1749634241316,-1167.73,0.00022737,4]
[365380169,1749634241326,-1058.54,0.00022737,4]
[365380170,1749634241337,-1095.86,0.00022737,4]
[365380172,1749634241346,-581.25,0.00022737,4]
[365380174,1749634241355,-1480.66,0.00022737,4]
[365380176,1749634241365,-1427.72,0.00022737,4]
[365380178,1749634241374,-1288.54,0.00022737,4]
[365380180,1749634241384,-505.21,0.00022737,4]
[365380182,1749634241394,-460.0,0.00022738,4]
[365380183,1749634241403,-1742.47,0.00022738,4]
[365380185,1749634241413,-460.0,0.00022738,4]
[365380187,1749634241422,-460.0,0.00022738,4]
[365380189,1749634241431,-488.03,0.00022738,4]
[365380192,1749634241441,-630.41,0.00022738,4]
[365380194,1749634241450,-820.37,0.00022738,4]
[365380196,1749634241460,-823.81,0.00022738,4]
[365380198,1749634241470,-741.28,0.00022738,4]
[365380200,1749634241479,-460.0,0.00022738,4]
[365380202,1749634241488,-1902.47,0.00022738,4]
[365380204,1749634241498,-1071.23,0.00022738,4]
[365380206,1749634241506,-779.84933525,0.00022769,2]
[365380208,1749634241515,-201.429579,0.00022777,7]
[365380210,1749634241525,-201.429579,0.00022777,7]
[365380212,1749634241534,-151.0,0.00022777,7]
[365380214,1749634241543,-151.0,0.000228,7]
[365380216,1749634241552,-151.0,0.000228,7]
[365380218,1749634241561,-151.0,0.000228,10]
[365380220,1749634241570,-362.62462011,0.00022831,8]
[365380222,1749634241579,-779.84933525,0.00022835,2]
[365380224,1749634241588,-23098.18251894,0.00022873,2]
[365380236,1749634241694,-313.32,0.000229,7]
[365380238,1749634241704,-151.0,0.000229,7]
[365380240,1749634241714,-779.84933525,0.000229,2]
[365380242,1749634241724,-1467.72489,0.00022931,3]
[365380244,1749634241733,-362.62462011,0.00022934,8]
[365380246,1749634241742,-12916.1454808,0.00022971,2]
[365380248,1749634241751,-502.74737807,0.00022973,2]
[365380251,1749634241761,-500.0,0.00022973,2]
[365380253,1749634241770,-501.89008847,0.00022973,2]
[365380255,1749634241779,-502.39152022,0.00022973,2]
[365380257,1749634241789,-567.2069987,0.00022973,2]
[365380259,1749634241798,-506.16225976,0.00022973,2]
[365380261,1749634241807,-600.0,0.00022973,2]
[365380262,1749634241816,-500.0,0.00022973,2]
[365380264,1749634241825,-440.39440254,0.00022973,2]
[365380266,1749634241835,-212.26630749,0.00022973,2]
[365380268,1749634241844,-500.46089362,0.00022973,2]
[365380270,1749634241853,-501.56200485,0.00022973,2]
[365380272,1749634241862,-504.30310197,0.00022973,2]
[365380274,1749634241871,-501.56853042,0.00022973,2]
[365380276,1749634241880,-501.81677955,0.00022973,2]
[365380278,1749634241889,-503.11996169,0.00022973,2]
[365380280,1749634241898,-500.53643659,0.00022973,2]
[365380282,1749634241907,-500.0,0.00022973,2]
[365380284,1749634241916,-502.09184424,0.00022973,2]
[365380286,1749634241925,-500.0,0.00022973,2]
[365380288,1749634241936,-151.0,0.00022988,7]
[365380290,1749634241945,-201.429579,0.00022988,7]
[365380292,1749634241954,-151.0,0.00022988,7]
[365380294,1749634241962,-201.429579,0.00022988,7]
[365380296,1749634241971,-151.0,0.00022988,7]
[365380298,1749634241980,-500.0,0.00022999,2]
[365380300,1749634241989,-500.0,0.00022999,2]
[365380302,1749634241998,-500.0,0.00022999,2]
[365380304,1749634242007,-500.0,0.00022999,2]
[365380306,1749634242017,-500.0,0.00022999,2]
[365380308,1749634242026,-500.0,0.00022999,2]
[365380310,1749634242035,-259.41425339,0.00022999,2]
[365380312,1749634242044,-438.78210011,0.00022999,2]
[365380314,1749634242053,-500.0,0.00022999,2]
[365380316,1749634242062,-500.0,0.00022999,2]
[365380318,1749634242071,-500.0,0.00022999,2]
[365380321,1749634242082,-500.0,0.00022999,2]
[365380322,1749634242091,-500.0,0.00022999,2]
[365380323,1749634242100,-500.0,0.00022999,2]
[365380324,1749634242109,-500.0,0.00022999,2]
[365380326,1749634242118,-500.0,0.00022999,2]
[365380328,1749634242127,-500.0,0.00022999,2]
[365380330,1749634242137,-500.0,0.00022999,2]
[365380332,1749634242146,-500.0,0.00022999,2]
[365380334,1749634242155,-500.0,0.00022999,2]
[365380336,1749634242167,-500.0,0.00022999,2]
[365380338,1749634242176,-500.0,0.00022999,2]
[365380340,1749634242186,-500.0,0.00022999,2]
[365380341,1749634242195,-500.0,0.00022999,2]
[365380342,1749634242204,-500.0,0.00022999,2]
[365380343,1749634242214,-300.0,0.00022999,2]
[365380344,1749634242223,-500.0,0.00022999,2]
[365380345,1749634242232,-500.0,0.00022999,2]
[365380346,1749634242242,-500.0,0.00022999,2]
[365380347,1749634242251,-211.17753717,0.00022999,2]
[365380348,1749634242260,-600.0,0.00022999,2]
[365380349,1749634242269,-497.82427601,0.00022999,2]
[365380350,1749634242278,-612.20790003,0.00022999,2]
[365380351,1749634242287,-72390.74,0.00022999,7]
[365380352,1749634242296,-213.16534259,0.00022999,7]
[365380353,1749634242306,-844.64040732,0.00022999,7]
[365380354,1749634242315,-160.0,0.00022999,7]
[365380355,1749634242324,-151.0,0.00022999,7]
[365380356,1749634242335,-279.841274,0.00023,7]
[365380357,1749634242344,-1305.32,0.00023,7]
[365380358,1749634242353,-151.0,0.00023,7]
[365380359,1749634242362,-151.0,0.00023,7]
[365380360,1749634242371,-74150.01,0.00023,7]
[365380361,1749634242380,-201.429579,0.00023,7]
[365380362,1749634242389,-201.429579,0.00023,7]
[365380363,1749634242398,-151.0,0.00023,7]
[365380364,1749634242408,-173.916841,0.00023,7]
[365380365,1749634242417,-201.429579,0.00023,7]
[365380366,1749634242427,-201.429576,0.00023,7]
[365380367,1749634242436,-151.0,0.00023,7]
[365380368,1749634242445,-151.0,0.00023,7]
[365380369,1749634242454,-151.0,0.00023,7]
[365380370,1749634242464,-151.0,0.00023,7]
[365380371,1749634242474,-151.0,0.00023,7]
[365380372,1749634242483,-151.0,0.00023,7]
[365380373,1749634242492,-151.0,0.00023,7]
[365380374,1749634242501,-151.0,0.00023,7]
[365380375,1749634242510,-209.176558,0.00023,7]
[365380376,1749634242519,-209.176558,0.00023,7]
[365380377,1749634242528,-151.36068,0.00023,7]
[365380378,1749634242537,-151.0,0.00023,7]
[365380379,1749634242546,-151.0,0.00023,7]
[365380380,1749634242555,-152.188611,0.00023,7]
[365380381,1749634242564,-151.0,0.00023,7]
[365380382,1749634242573,-151.0,0.00023,7]
[365380383,1749634242583,-519.763404,0.00023,7]
[365380384,1749634242592,-519.763404,0.00023,7]
[365380385,1749634242601,-519.763404,0.00023,7]
[365380386,1749634242610,-519.763404,0.00023,7]
[365380387,1749634242620,-151.0,0.00023,7]
[365380388,1749634242630,-151.0,0.00023,7]
[365380389,1749634242639,-151.0,0.00023,7]
[365380390,1749634242649,-151.0,0.00023,7]
[365380391,1749634242658,-151.0,0.00023,7]
[365380392,1749634242668,-151.0,0.00023,7]
[365380393,1749634242677,-151.0,0.00023,7]
[365380394,1749634242686,-151.0,0.00023,7]
[365380395,1749634242696,-151.0,0.00023,7]
[365380396,1749634242706,-151.0,0.00023,7]
[365380397,1749634242715,-151.0,0.00023,7]
[365380398,1749634242724,-175.415714,0.00023,7]
[365380399,1749634242734,-3749.597534,0.00023,2]
[365380400,1749634242744,-3749.597534,0.00023,2]
[365380401,1749634242754,-3749.597534,0.00023,2]
[365380402,1749634242764,-3749.597534,0.00023,2]
[365380403,1749634242774,-151.0,0.00023,7]
[365380404,1749634242783,-151.0,0.00023,7]
[365380405,1749634242793,-160.0,0.00023,3]
[365380406,1749634242803,-10007.23097655,0.00023,2]
[365380407,1749634242812,-160.0,0.00023,7]
[365380408,1749634242822,-151.0,0.00023,7]
[365380409,1749634242831,-151.0,0.00023,7]
[365380410,1749634242843,-171.0,0.00023,7]
[365380411,1749634242852,-229.71724145,0.00023,3]
[365380412,1749634242862,-265.267461,0.00023,7]
[365380413,1749634242871,-132755.41016221,0.00023,2]
[365380414,1749634242881,-265.267461,0.00023,7]
[365380415,1749634242890,-248.6259382,0.00023,2]
[365380416,1749634242899,-1127.42139629,0.00023,2]
[365380417,1749634242909,-424.19973472,0.00023,3]
[365380418,1749634242918,-160.0,0.00023,3]
[365380419,1749634242927,-160.0,0.00023,3]
[365380420,1749634242937,-835.03886221,0.00023,3]
[365380421,1749634242947,-151.0,0.00023,7]
[365380422,1749634242956,-151.0,0.00023,7]
[365380423,1749634242966,-44157.08048027,0.00023,2]
[365380424,1749634242975,-232.626488,0.00023,7]
[365380426,1749634242984,-160.0,0.00023,3]
[365380428,1749634242993,-151.927579,0.00023,7]
[365380429,1749634243003,-10043.38789823,0.00023,2]
[365380430,1749634243012,-183575.13932999,0.00023,20]
[365380431,1749634243021,-1328.71905864,0.00023,2]
[365380432,1749634243030,-12144.05662309,0.00023,2]
[365380434,1749634243046,-827.43368044,0.00023,2]
[365380436,1749634243056,-151.0,0.00023,7]
[365380437,1749634243066,-151.0,0.00023,7]
[365380438,1749634243075,-151.0,0.00023,7]
[365380439,1749634243088,-152.277517,0.00023,7]
[365380441,1749634243098,-152.860383,0.00023,7]
[365380442,1749634243108,-155.0,0.00023,2]
[365380443,1749634243117,-641.33,0.00023011,4]
[365380444,1749634243126,-1167.73,0.00023011,4]
[365380445,1749634243136,-1058.54,0.00023011,4]
[365380446,1749634243145,-882.48053177,0.00023011,4]
[365380447,1749634243157,-213.37946823,0.00023011,4]
[365380448,1749634243168,-581.25,0.00023011,4]
[365380449,1749634243177,-1073.38144226,0.00023011,4]
[365380450,1749634243249,-460.0,0.00021367,4]
[365380451,1749634243259,-3.50868858,0.00021641,4]
[365380473,1749634246600,-460.0,0.00021367,4]
[365380474,1749634246610,-376.49131142,0.00021641,4]
[365380475,1749634246619,-420.0,0.00021641,4]
[365380476,1749634246629,-67.83535487,0.0002199,3]
[365380477,1749634246655,-277.38375,0.0002199,3]
[365380478,1749634246667,-87.48089513,0.0002199,3]
[365380479,1749634246676,-213.88100482,0.00023011,4]
[365380480,1749634246689,-193.39755292,0.00023011,4]
[365380481,1749634246698,-119.92900508,0.00023011,4]
[365380491,1749635217958,161.182445,0.00013699,2]
[365380507,1749635235709,3215.91009101,0.00024657,120]
[365380517,1749635432083,-691.1442071,0.000189,2]
[365380518,1749635432092,-500.0,0.00019313,2]
[365380519,1749635432102,-500.0,0.0002033,2]
[365380520,1749635432112,-284.08711,0.00020563,2]
[365380542,1749635437820,-31.26289,0.00020563,2]
[365380543,1749635437830,-200.0,0.00020894,2]
[365380544,1749635437840,-500.0,0.00021064,2]
[365380545,1749635437850,-488.92099128,0.00021358,2]
[365380546,1749635437859,-300.0,0.00021362,2]
[365380547,1749635437868,-300.0,0.00021362,2]
[365380548,1749635437878,-300.0,0.00021362,2]
[365380549,1749635437887,-300.0,0.00021363,2]
[365380550,1749635437898,-460.0,0.00021363,4]
[365380551,1749635437908,-500.0,0.00021363,2]
[365380552,1749635437918,-500.0,0.00021363,2]
[365380553,1749635437928,-500.0,0.00021363,2]
[365380554,1749635437937,-305.77964496,0.00021363,2]
[365380555,1749635437948,-500.0,0.00021363,2]
[365380556,1749635437959,-500.0,0.00021363,2]
[365380557,1749635437969,-500.0,0.00021363,2]
[365380558,1749635437979,-500.0,0.00021363,2]
[365380559,1749635437988,-500.0,0.00021363,2]
[365380560,1749635438000,-500.0,0.00021363,2]
[365380561,1749635438009,-500.0,0.00021363,2]
[365380562,1749635438018,-500.0,0.00021363,2]
[365380563,1749635438028,-500.0,0.00021363,2]
[365380564,1749635438037,-500.0,0.00021363,2]
[365380565,1749635438046,-500.0,0.00021363,2]
[365380566,1749635438055,-500.0,0.00021363,2]
[365380567,1749635438065,-460.0,0.00021363,4]
[365380568,1749635438073,-460.0,0.00021363,4]
[365380569,1749635438082,-460.0,0.00021363,4]
[365380570,1749635438092,-499.99999999,0.00021363,2]
[365380571,1749635438101,-1917.12,0.00021363,4]
[365380572,1749635438110,-410.0,0.00021363,4]
[365380573,1749635438119,-460.0,0.00021363,4]
[365380574,1749635438129,-1785.88,0.00021363,4]
[365380575,1749635438150,-460.0,0.00021363,4]
[365380576,1749635438171,-460.0,0.00021363,4]
[365380577,1749635438180,-1443.2,0.00021363,4]
[365380578,1749635438190,-2188.16,0.00021363,4]
[365380579,1749635438199,-522.73462613,0.00021363,4]
[365380580,1749635438208,-460.0,0.00021363,4]
[365380581,1749635438216,-460.0,0.00021363,4]
[365380582,1749635438226,-460.0,0.00021363,4]
[365380583,1749635438235,-460.0,0.00021363,4]
[365380584,1749635438244,-460.0,0.00021363,4]
[365380585,1749635438253,-460.0,0.00021363,4]
[365380586,1749635438263,-343.12071737,0.00021363,4]
[365380587,1749635438272,-1515.33,0.00021363,4]
[365380588,1749635438281,-460.0,0.00021363,4]
[365380589,1749635438290,-969.14,0.00021363,4]
[365380590,1749635438300,-1727.99,0.00021363,4]
[365380591,1749635438309,-460.0,0.00021363,4]
[365380592,1749635438319,-460.0,0.00021363,4]
[365380593,1749635438329,-460.0,0.00021363,4]
[365380594,1749635438338,-460.0,0.00021363,4]
[365380595,1749635438348,-750.51,0.00021363,4]
[365380596,1749635438357,-460.0,0.00021363,4]
[365380597,1749635438366,-460.0,0.00021364,4]
[365380598,1749635438376,-460.0,0.00021364,4]
[365380599,1749635438385,-440.0,0.00021364,4]
[365380600,1749635438394,-237.03695198,0.00021364,4]
[365380601,1749635438403,-410.0,0.00021364,4]
[365380602,1749635438412,-420.0,0.00021364,4]
[365380603,1749635438421,-460.0,0.00021364,2]
[365380604,1749635438430,-420.0,0.00021364,4]
[365380605,1749635438440,-460.0,0.00021364,4]
[365380606,1749635438449,-460.0,0.00021364,4]
[365380607,1749635438458,-460.0,0.00021364,4]
[365380608,1749635438467,-460.0,0.00021364,4]
[365380609,1749635438477,-460.0,0.00021364,4]
[365380610,1749635438486,-460.0,0.00021364,4]
[365380611,1749635438495,-460.0,0.00021364,4]
[365380612,1749635438505,-460.0,0.00021364,4]
[365380613,1749635438514,-460.0,0.00021364,4]
[365380614,1749635438523,-460.0,0.00021364,4]
[365380615,1749635438537,-500.0,0.00021364,4]
[365380616,1749635438547,-460.0,0.00021364,4]
[365380617,1749635438556,-397.29061457,0.00021364,4]
[365380618,1749635438566,-460.0,0.00021364,4]
[365380619,1749635438576,-460.0,0.00021364,4]
[365380620,1749635438585,-460.0,0.00021364,4]
[365380621,1749635438595,-460.0,0.00021364,4]
[365380622,1749635438605,-460.0,0.00021364,4]
[365380623,1749635438615,-460.0,0.00021364,4]
[365380624,1749635438624,-460.0,0.00021364,4]
[365380625,1749635438633,-460.0,0.00021364,4]
[365380626,1749635438643,-460.0,0.00021364,4]
[365380627,1749635438652,-460.0,0.00021364,4]
[365380628,1749635438661,-460.0,0.00021364,4]
[365380629,1749635438670,-420.0,0.00021364,4]
[365380630,1749635438679,-460.0,0.00021364,4]
[365380631,1749635438689,-440.0,0.00021364,4]
[365380632,1749635438698,-460.0,0.00021364,4]
[365380633,1749635438707,-440.0,0.00021364,4]
[365380634,1749635438716,-400.0,0.00021364,4]
[365380635,1749635438725,-201.085647,0.00021364,4]
[365380636,1749635438733,-373.48685481,0.00021364,4]
[365380637,1749635438743,-460.0,0.00021364,4]
[365380638,1749635438752,-460.0,0.00021364,4]
[365380639,1749635438762,-1076.29,0.00021364,4]
[365380640,1749635438771,-460.0,0.00021364,4]
[365380641,1749635438781,-653.87,0.00021364,4]
[365380642,1749635438790,-460.0,0.00021364,4]
[365380643,1749635438799,-768.59,0.00021364,4]
[365380644,1749635438808,-460.0,0.00021364,4]
[365380645,1749635438818,-440.0,0.00021364,4]
[365380646,1749635438827,-460.0,0.00021364,4]
[365380647,1749635438836,-959.05,0.00021364,4]
[365380648,1749635438845,-372.83891976,0.00021364,4]
[365380649,1749635438855,-460.0,0.00021364,4]
[365380650,1749635438864,-460.0,0.00021364,4]
[365380651,1749635438874,-460.0,0.00021364,4]
[365380652,1749635438882,-460.0,0.00021364,4]
[365380653,1749635438892,-460.0,0.00021364,4]
[365380654,1749635438901,-460.0,0.00021364,4]
[365380655,1749635438910,-460.0,0.00021364,4]
[365380656,1749635438920,-460.0,0.00021364,4]
[365380657,1749635438930,-460.0,0.00021364,4]
[365380658,1749635438939,-460.0,0.00021364,4]
[365380659,1749635438948,-460.0,0.00021364,4]
[365380660,1749635438958,-1132.89,0.00021364,4]
[365380661,1749635438967,-460.0,0.00021364,4]
[365380662,1749635438976,-460.0,0.00021364,4]
[365380663,1749635438985,-350.19880959,0.00021364,4]
[365380664,1749635438995,-395.04103203,0.00021364,4]
[365380665,1749635439004,-460.0,0.00021364,4]
[365380666,1749635439013,-460.0,0.00021364,4]
[365380667,1749635439022,-460.0,0.00021364,4]
[365380668,1749635439032,-410.11199095,0.00021364,4]
[365380669,1749635439042,-420.0,0.00021364,4]
[365380670,1749635439051,-460.0,0.00021364,4]
[365380671,1749635439060,-460.0,0.00021364,4]
[365380672,1749635439070,-460.0,0.00021364,4]
[365380673,1749635439080,-460.0,0.00021364,4]
[365380674,1749635439089,-460.0,0.00021364,4]
[365380675,1749635439098,-994.7,0.00021364,4]
[365380676,1749635439108,-460.0,0.00021364,4]
[365380677,1749635439117,-420.0,0.00021364,4]
[365380678,1749635439126,-460.0,0.00021364,4]
[365380679,1749635439135,-460.0,0.00021364,4]
[365380680,1749635439144,-460.0,0.00021364,4]
[365380681,1749635439153,-460.0,0.00021364,4]
[365380682,1749635439163,-460.0,0.00021364,4]
[365380683,1749635439172,-460.0,0.00021364,4]
[365380684,1749635439181,-460.0,0.00021364,4]
[365380685,1749635439190,-2825.79,0.00021364,4]
[365380686,1749635439199,-460.0,0.00021364,4]
[365380687,1749635439209,-580.96,0.00021364,4]
[365380688,1749635439218,-460.0,0.00021364,4]
[365380689,1749635439227,-535.6537343,0.00021364,4]
[365380690,1749635439237,-460.0,0.00021364,4]
[365380691,1749635439246,-400.0,0.00021365,4]
[365380692,1749635439255,-460.0,0.00021365,4]
[365380693,1749635439265,-460.0,0.00021365,4]
[365380694,1749635439274,-460.0,0.00021365,4]
[365380695,1749635439283,-460.0,0.00021365,4]
[365380696,1749635439293,-460.0,0.00021365,4]
[365380697,1749635439302,-580.0,0.00021365,4]
[365380698,1749635439312,-460.0,0.00021365,4]
[365380699,1749635439321,-460.0,0.00021365,4]
[365380700,1749635439331,-460.0,0.00021365,4]
[365380701,1749635439340,-460.0,0.00021365,4]
[365380702,1749635439350,-460.0,0.00021365,4]
[365380703,1749635439359,-460.0,0.00021365,4]
[365380704,1749635439369,-460.0,0.00021365,4]
[365380705,1749635439379,-460.0,0.00021365,4]
[365380706,1749635439388,-460.0,0.00021365,4]
[365380707,1749635439398,-460.0,0.00021365,4]
[365380708,1749635439407,-460.0,0.00021365,4]
[365380709,1749635439417,-460.0,0.00021365,4]
[365380710,1749635439427,-460.0,0.00021365,4]
[365380711,1749635439436,-460.0,0.00021365,4]
[365380712,1749635439445,-407.25886808,0.00021365,4]
[365380713,1749635439455,-460.0,0.00021365,4]
[365380714,1749635439465,-460.0,0.00021365,4]
[365380715,1749635439474,-460.0,0.00021365,4]
[365380716,1749635439484,-460.0,0.00021365,4]
[365380718,1749635439493,-460.0,0.00021365,4]
[365380720,1749635439502,-460.0,0.00021365,4]
[365380722,1749635439512,-460.0,0.00021365,4]
[365380724,1749635439521,-460.0,0.00021365,4]
[365380726,1749635439532,-460.0,0.00021365,4]
[365380728,1749635439542,-460.0,0.00021365,4]
[365380730,1749635439551,-460.0,0.00021365,4]
[365380732,1749635439560,-460.0,0.00021365,4]
[365380734,1749635439576,-460.0,0.00021365,4]
[365380736,1749635439597,-460.0,0.00021365,4]
[365380749,1749635439716,-460.0,0.00021365,4]
[365380751,1749635439726,-460.0,0.00021365,4]
[365380753,1749635439736,-460.0,0.00021365,4]
[365380755,1749635439746,-460.0,0.00021365,4]
[365380757,1749635439755,-460.0,0.00021365,4]
[365380759,1749635439765,-460.0,0.00021365,4]
[365380761,1749635439774,-460.0,0.00021365,4]
[365380763,1749635439784,-460.0,0.00021365,4]
[365380765,1749635439794,-460.0,0.00021365,4]
[365380767,1749635439803,-460.0,0.00021365,4]
[365380769,1749635439812,-440.0,0.00021365,4]
[365380771,1749635439821,-413.99274889,0.00021365,4]
[365380773,1749635439832,-460.0,0.00021365,4]
[365380775,1749635439841,-460.0,0.00021365,4]
[365380777,1749635439851,-460.0,0.00021365,4]
[365380779,1749635439860,-460.0,0.00021365,4]
[365380781,1749635439869,-460.0,0.00021365,4]
[365380783,1749635439878,-460.0,0.00021365,4]
[365380785,1749635439888,-442.95123552,0.00021365,4]
[365380787,1749635439897,-460.0,0.00021365,4]
[365380789,1749635439906,-519.12231042,0.00021365,4]
[365380791,1749635439916,-460.0,0.00021365,4]
[365380793,1749635439926,-460.0,0.00021365,4]
[365380795,1749635439935,-460.0,0.00021365,4]
[365380797,1749635439945,-460.0,0.00021365,4]
[365380799,1749635439954,-460.0,0.00021365,4]
[365380801,1749635439963,-460.0,0.00021365,4]
[365380803,1749635439972,-460.0,0.00021365,4]
[365380805,1749635439981,-460.0,0.00021365,4]
[365380807,1749635439991,-334.33636754,0.00021365,4]
[365380809,1749635440000,-460.0,0.00021365,4]
[365380811,1749635440009,-460.0,0.00021365,4]
[365380813,1749635440018,-972.71,0.00021365,4]
[365380815,1749635440027,-500.0,0.00021365,4]
[365380817,1749635440037,-460.0,0.00021365,4]
[365380819,1749635440046,-1088.65,0.00021365,4]
[365380821,1749635440056,-460.0,0.00021365,4]
[365380823,1749635440065,-460.0,0.00021365,4]
[365380825,1749635440075,-460.0,0.00021365,4]
[365380827,1749635440085,-460.0,0.00021365,4]
[365380829,1749635440094,-500.0,0.00021365,4]
[365380831,1749635440103,-500.0,0.00021365,4]
[365380833,1749635440113,-460.0,0.00021365,4]
[365380835,1749635440122,-500.77,0.00021365,4]
[365380837,1749635440133,-460.0,0.00021365,4]
[365380839,1749635440143,-460.0,0.00021365,4]
[365380841,1749635440152,-460.0,0.00021365,4]
[365380844,1749635440167,-463.38458235,0.00021365,4]
[365380846,1749635440176,-460.0,0.00021365,4]
[365380848,1749635440186,-318.26145213,0.00021365,4]
[365380850,1749635440195,-460.0,0.00021365,4]
[365380852,1749635440204,-460.0,0.00021365,4]
[365380854,1749635440213,-460.0,0.00021365,4]
[365380856,1749635440223,-460.0,0.00021365,4]
[365380858,1749635440232,-460.0,0.00021365,4]
[365380860,1749635440241,-460.0,0.00021365,4]
[365380862,1749635440251,-400.0,0.00021365,4]
[365380864,1749635440260,-460.0,0.00021365,4]
[365380866,1749635440270,-460.0,0.00021365,2]
[365380868,1749635440279,-460.0,0.00021365,4]
[365380870,1749635440288,-460.0,0.00021365,4]
[365380872,1749635440300,-460.0,0.00021365,4]
[365380874,1749635440309,-460.0,0.00021365,4]
[365380876,1749635440318,-460.0,0.00021365,4]
[365380878,1749635440328,-460.0,0.00021365,4]
[365380880,1749635440338,-460.0,0.00021365,4]
[365380882,1749635440347,-460.0,0.00021365,4]
[365380884,1749635440356,-460.0,0.00021365,4]
[365380886,1749635440365,-460.0,0.00021365,4]
[365380888,1749635440375,-460.0,0.00021365,4]
[365380891,1749635440385,-460.0,0.00021365,4]
[365380893,1749635440395,-460.0,0.00021365,4]
[365380895,1749635440404,-460.0,0.00021365,4]
[365380897,1749635440414,-400.0,0.00021365,4]
[365380899,1749635440424,-460.0,0.00021365,4]
[365380901,1749635440433,-460.0,0.00021365,4]
[365380903,1749635440443,-500.0,0.00021366,4]
[365380905,1749635440453,-169.73,0.00021366,4]
[365380907,1749635440462,-500.0,0.00021366,2]
[365380909,1749635440472,-467.92466509,0.00021367,4]
[365380911,1749635440481,-440.0,0.00021367,4]
[365380913,1749635440491,-420.0,0.00021367,4]
[365380914,1749635440500,-460.0,0.00021367,4]
[365380916,1749635440509,-460.0,0.00021367,4]
[365380918,1749635440518,-393.60472095,0.00021367,4]
[365380920,1749635440528,-420.0,0.00021367,4]
[365380922,1749635440540,-421.21475966,0.00021367,4]
[365380924,1749635440550,-420.0,0.00021367,4]
[365380926,1749635440559,-460.0,0.00021367,4]
[365380929,1749635440569,-420.0,0.00021367,4]